Cogmind - Beta 11 X5 @@@ ROGUE MODE // 2021.07.08 @ 15:37:05 Player: Exp. Geonium Core Result: Destroyed by H-55 Commando with Gauss Rifle Performance ------------- Evolutions (2) 1000 Regions Visited (3) 600 Robots Destroyed (37) 185 Value Destroyed (951) 951 Prototype IDs (1) 20 Alien Tech Used (0) 0 Bonus (0) 0 TOTAL SCORE: 2756 Bonus ------- None Cogmind --------- Core Integrity 0/550 Matter 285/300 Energy 93/100 System Corruption 0% Temperature Cool (0) Movement Treading (155) Location -8/Materials Parts ------- > --- POWER (1) -------- (None) > --- PROPULSION (3) --- Improved Treads Improved Treads Advanced Treads > --- UTILITY (5) ------ High-capacity Storage Unit Target Analyzer Weapon Shielding > --- WEAPON (2) ------- Heavy Particle Gun > --- INVENTORY (20) --- Light Angular Momentum Engine Light Treads Wheel Compact Wheel High-capacity Storage Unit Melee Analysis Suite Weapon Shielding Improved Weapon Shielding Light Armor Plating Trap Extractor High-powered Shotgun Peak State ------------ > --- POWER ------------ Light Nuclear Core > --- PROPULSION ------- Advanced Treads Advanced Treads Wheel > --- UTILITY ---------- High-capacity Storage Unit Light Armor Plating Hardened Medium Armor Plating Hardened Medium Armor Plating Reactive Plating > --- WEAPON ----------- High-powered Shotgun Gauss Rifle > --- INVENTORY -------- Light Treads Improved Treads Improved Treads Advanced Treads Advanced Treads Wheel Wheel High-capacity Storage Unit Melee Analysis Suite Target Analyzer Weapon Shielding Weapon Shielding Improved Weapon Shielding Light Armor Plating Trap Extractor High-powered Shotgun High-powered Shotgun [Rating: 31] Favorites ----------- Power Light Nuclear Core Engine Ion Engine Power Core Light Nuclear Core Propulsion Improved Treads Treads Improved Treads Leg Aluminum Leg Wheel Wheel Utility Light Armor Plating Storage High-capacity Storage Unit Processor Target Analyzer Protection Light Armor Plating Weapon High-powered Shotgun Energy Gun Heavy EM Pulse Gun Ballistic Gun High-powered Shotgun Impact Weapon Hammer Build | -11 -10 -9 -8 ------- Run | Scr Mat Mat Mat Slots Evolved 4 | . . 2 2 Power . | . . . . Propulsion 1 | . . . 1 Utility 3 | . . 2 1 Weapon . | . . . . Parts Attached 41 | . 8 13 20 Power 2 | . . . 2 Engine 1 | . . . 1 Core 1 | . . . 1 Reactor . | . . . . Propulsion 16 | . 2 5 9 Treads 11 | . 2 3 6 Leg . | . . . . Wheel 5 | . . 2 3 Hover . | . . . . Flight . | . . . . Utility 12 | . 3 4 5 Device . | . . . . Storage 3 | . 2 1 . Processor 1 | . . . 1 Hackware . | . . . . Protection 8 | . 1 3 4 Artifact . | . . . . Weapon 11 | . 3 4 4 Energy Gun 5 | . 2 2 1 Energy Cannon . | . . . . Ballistic Gun 5 | . . 2 3 Ballistic Cannon . | . . . . Launcher . | . . . . Special Weapon . | . . . . Impact Weapon 1 | . 1 . . Slashing Weapon . | . . . . Piercing Weapon . | . . . . Special Melee Weapon . | . . . . Unidentified Prototypes 1 | . . . 1 Parts Lost 21 | . 3 3 15 Power 2 | . 1 . 1 Propulsion 9 | . 1 1 7 Utility 5 | . . 1 4 Weapon 5 | . 1 1 3 Highest Loss Streak 9 | . 1 1 9 Average Slot Usage (%) 76 | . 76 70 85 Engine 1 | . 2 . 2 Core 1 | . . . 3 Treads 18 | . 24 18 9 Leg 1 | . 3 . . Wheel 5 | . . 2 17 Storage 15 | . 21 11 9 Protection 14 | . 3 20 24 Energy Gun 5 | . 9 2 2 Ballistic Gun 6 | . . 8 13 Impact Weapon 6 | . 10 5 . Naked Turns . | . . . . Heaviest Build 81 | 12 25 53 81 Greatest Support 68 | 20 46 46 68 Greatest Overweight (x) 7 | . 1 5 7 Average Overweight (x) . | . . 1 2 Largest Inventory Capacity 20 | . 15 20 20 Average Capacity 15 | . 10 19 20 Most Carried 18 | . 10 15 18 Average Carried 10 | . 7 10 15 Final Capacity 20 | 8 15 20 20 Final Carried 14 | 6 9 14 11 Class Distribution -------------------- 85% | Mutant 14% | Scavenger-Mutant Dominant Class ---------------- Mutant | -10/Materials Mutant | -9/Materials Scavenger-Mutant | -8/Materials Resources | -11 -10 -9 -8 ----------- Run | Scr Mat Mat Mat Matter Collected 925 | 200 60 199 466 Remotely . | . . . . Salvage Created 1381 | . 315 394 672 Parts 58 | . 21 15 22 Haulers Intercepted 1 | . 1 . . Recyclers Shooed 3 | . . 1 2 Parts Field Recycled . | . . . . Retrieved Matter . | . . . . Parts Self-Destructed . | . . . . Prevented . | . . . . Kills | -11 -10 -9 -8 ------- Run | Scr Mat Mat Mat Combat Hostiles Destroyed 23 | . 8 6 9 Melee 4 | . 3 1 . Guns 16 | . 3 4 9 AOE 1 | . 1 . . Classes Destroyed 10 | . 5 4 1 Worker 4 | . . 1 3 Builder 3 | . 3 . . Tunneler 1 | . . 1 . Hauler 1 | . 1 . . Recycler 3 | . . 1 2 Watcher 2 | . 2 . . Swarmer 5 | . 5 . . Grunt 11 | . 3 2 6 Sentry 5 | . . 4 1 Hunter 2 | . . . 2 Best Kill Streak 6 | . 5 3 6 Combat Bots Only 3 | . 3 2 2 Max Kills in Single Turn 1 | . 1 1 1 Gunslinging . | . . . . Exploded 1 | . 1 . . Melee 1 | . 1 1 . Uniques/NPCs Destroyed . | . . . . Combat | -11 -10 -9 -8 -------- Run | Scr Mat Mat Mat Damage Taken 3811 | . 575 656 2580 Core 809 | . 151 96 562 Absorbed by Shields . | . . . . Core Remaining (%) 71 | 100 39 76 . Volleys Fired 97 | . 13 17 67 Largest 2 | . 2 2 2 Hottest 110 | . 90 110 55 Shots Fired 148 | . 26 34 88 Gun 148 | . 26 34 88 Cannon . | . . . . Launcher . | . . . . Special . | . . . . Kinetic 74 | . . 26 48 Thermal 49 | . 5 4 40 Explosive . | . . . . Electromagnetic 25 | . 21 4 . Robot Hit Streak 9 | . 3 7 9 Robot Miss Streak 6 | . 6 4 4 Penetration Max 1 | . . . 1 Secondary Targets . | . . . . Shots Hit Robots 128 | . 27 39 62 Core Hits 55 | . 12 14 29 Critical Kills . | . . . . Critical Parts Destroyed 1 | . 1 . . Critical Strikes 3 | . 1 1 1 Burn 1 | . . . 1 Corrupt 1 | . . 1 . Smash 1 | . 1 . . Melee Attacks 41 | . 24 17 . Impact 41 | . 24 17 . Slashing . | . . . . Piercing . | . . . . Sneak Attacks 6 | . 4 2 . Combat Hostiles . | . . . . Follow-up Attacks . | . . . . Damage Inflicted 2828 | . 834 685 1309 Guns 1757 | . 139 367 1251 Cannons . | . . . . Explosions 189 | . 189 . . Melee 824 | . 506 318 . Ramming 58 | . . . 58 Kinetic 969 | . . 280 689 Thermal 809 | . 201 46 562 Explosive . | . . . . Electromagnetic 168 | . 127 41 . Impact 824 | . 506 318 . Slashing . | . . . . Piercing . | . . . . Highest Corruption . | . . . . Average Corruption . | . . . . Corruption Purged . | . . . . Overload Shots . | . . . . Overflow Damage 219 | . 175 44 . Projectiles . | . . . . Explosions . | . . . . Melee 219 | . 175 44 . Knockbacks 5 | . 3 2 . Impact 5 | . 3 2 . Kinetic . | . . . . Secondary . | . . . . Self-Inflicted Damage 4 | . . . 4 Shots . | . . . . Rammed 11 | . . . 11 Targets Rammed 11 | . . . 11 Kicked . | . . . . Crushed . | . . . . Highest Temperature 642 | . 144 168 642 Average Temperature 176 | . 66 81 211 Received Heat Transfer 1416 | . 189 273 954 Effects 24 | . . . 24 Shutdowns 5 | . . . 5 Energy Bleed 2 | . . . 2 Interference 2 | . . . 2 Matter Decay 3 | . . . 3 Short Circuit 4 | . . . 4 Damage (minor) 3 | . . . 3 Damage (major) 3 | . . . 3 Damage (core) 2 | . . . 2 Siege Activations . | . . . . Robots Corrupted . | . . . . Combat Hostiles . | . . . . Parts Fried 13 | . 11 2 . Impact Corruptions 13 | . 10 3 . Robots Melted . | . . . . Combat Hostiles . | . . . . Parts Melted 2 | . . . 2 Heat Transferred 1582 | . 287 111 1184 Parts Sabotaged . | . . . . Parts Stolen . | . . . . Parts Stripped . | . . . . Power Chain Reactions 2 | . 2 . . Missiles Intercepted . | . . . . Alert | -11 -10 -9 -8 ------- Run | Scr Mat Mat Mat Peak Influence 239 | . 204 127 239 Initial 53 | . . 14 53 Average 80 | . 91 41 105 Maximum Alert Level 1 | . 1 . 1 Low Security (%) 93 | . 91 100 89 Level 1 6 | . 8 . 10 Level 2 . | . . . . Level 3 . | . . . . Level 4 . | . . . . Level 5 . | . . . . High Security . | . . . . Max Security . | . . . . Squads Dispatched 4 | . . 1 3 Investigation . | . . . . Extermination . | . . . . Reinforcement 2 | . . 1 1 Assault . | . . . . Garrison 2 | . . . 2 Intercept . | . . . . Construction Impeded . | . . . . Haulers Reinforced . | . . . . Cargo Convoy Interrupts . | . . . . Stealth | -11 -10 -9 -8 --------- Run | Scr Mat Mat Mat Distress Signals 2 | . 1 1 . Communications Jammed . | . . . . Distress Signals . | . . . . Times Spotted 56 | . 22 11 23 Peak Tracking Total 8 | . 4 3 8 Tactical Retreats 7 | . 5 . 2 Traps | -11 -10 -9 -8 ------- Run | Scr Mat Mat Mat Traps Triggered 2 | . 1 . 1 Indirectly . | . . . . Trap Hack Attempts . | . . . . Triggered . | . . . . Disarmed . | . . . . Reprogrammed . | . . . . Reused . | . . . . Traps Extracted . | . . . . Installed . | . . . . Triggered . | . . . . Machines | -11 -10 -9 -8 ---------- Run | Scr Mat Mat Mat Machines Disabled 3 | . . 1 2 Max in Single Turn 1 | . . 1 1 Machines Sabotaged . | . . . . Garrisons Compromised . | . . . . Overloaded Fab Kills . | . . . . Fab Network Shutdowns . | . . . . Hacking | -11 -10 -9 -8 --------- Run | Scr Mat Mat Mat Machines Accessed 5 | . 1 3 1 Terminals 5 | . 1 3 1 Fabricators . | . . . . Repair Stations . | . . . . Recycling Units . | . . . . Scanalyzers . | . . . . Garrison Access . | . . . . Total Hacks 8 | . 1 5 2 Successful 2 | . 1 1 . Failed 6 | . . 4 2 Catastrophic 2 | . . 1 1 Database Lockouts . | . . . . Manual 4 | . . 4 . Terminals 8 | . 1 5 2 Fabricators . | . . . . Repair Stations . | . . . . Recycling Units . | . . . . Scanalyzers . | . . . . Garrison Access . | . . . . Terminal Hacks 2 | . 1 1 . Part Schematic 1 | . . 1 . Registered Components 1 | . 1 . . Fabricator Hacks . | . . . . Repair Station Hacks . | . . . . Recycling Unit Hacks . | . . . . Scanalyzer . | . . . . Garrison Access Hacks . | . . . . Unauthorized Hacks . | . . . . Terminals . | . . . . Fabricators . | . . . . Repair Stations . | . . . . Recycling Units . | . . . . Scanalyzers . | . . . . Garrison Access . | . . . . Data Cores Recovered . | . . . . Used . | . . . . Hacking Detections 4 | . . 3 1 Full Trace Events 1 | . . 1 . Feedback Events . | . . . . Feedback Blocked . | . . . . Robot Schematics Acquired . | . . . . Robots Built . | . . . . Matter . | . . . . Time . | . . . . Total Robot Build Rating . | . . . . Part Schematics Acquired 1 | . . 1 . Parts Built . | . . . . Matter . | . . . . Time . | . . . . Total Part Build Rating . | . . . . Parts Repaired . | . . . . Time . | . . . . Parts Recycled . | . . . . Recycled Matter . | . . . . Retrieved Matter . | . . . . Retrieved Components . | . . . . Parts Scanalyzed . | . . . . Part Schematics Acquired . | . . . . Parts Damaged . | . . . . Bothacking | -11 -10 -9 -8 ------------ Run | Scr Mat Mat Mat Used RIF Installer . | . . . . Robots Hacked . | . . . . Non-combat . | . . . . Combat . | . . . . Robot Hacks Applied . | . . . . Relay Couplers Released . | . . . . Robots Rewired . | . . . . Allies Hacked . | . . . . Hacks Repelled . | . . . . Allies | -11 -10 -9 -8 -------- Run | Scr Mat Mat Mat Total Allies . | . . . . Largest Group . | . . . . Highest-Rated Group . | . . . . Highest-Rated Ally . | . . . . Total Orders . | . . . . Ally Attacks . | . . . . Total Damage . | . . . . Kills . | . . . . Allies Corrupted . | . . . . Allies Melted . | . . . . Intel | -11 -10 -9 -8 ------- Run | Scr Mat Mat Mat Robot Analysis Total . | . . . . Derelict Logs Recovered . | . . . . Drone Launches . | . . . . Drone Recoveries . | . . . . Exploration | -11 -10 -9 -8 ------------- Run | Scr Mat Mat Mat Turns Passed 2371 | . 1004 721 646 Spaces Moved 1166 | 1 544 307 314 Core . | . . . . Treads 739 | . 462 231 46 Legs 83 | 1 82 . . Wheels 344 | . . 76 268 Hover . | . . . . Flight . | . . . . Fastest Speed 95 | 120 120 110 95 Average Speed 157 | 120 156 188 127 Slowest Speed 260 | 120 200 260 245 Overloaded Moves . | . . . . Propulsion Burnouts . | . . . . Robots Hopped . | . . . . Cave-ins Triggered . | . . . . Exploration Rate (%) 40 | 1 92 25 42 Regions Visited 3 Branch Regions . Pre-discovered Areas . | . . . . Known Exits Taken . | . . . . Unknown Exits Taken 3 | 1 1 1 . Scrap Searched . | . . . . Spaces Dug 1 | . . 1 . Terrain Destroyed 6 | . 5 1 . Melee 1 | . . 1 . Projectile . | . . . . AOE 5 | . 5 . . Terrain Rammed . | . . . . Walls Destroyed . | . . . . Machines Disabled . | . . . . Actions | -11 -10 -9 -8 --------- Run | Scr Mat Mat Mat Total 1480 | . 635 388 457 Wait 84 | . 35 18 31 Move 1163 | . 543 306 314 Hop . | . . . . Pick Up 22 | . 4 9 9 Fast Attach 21 | . 7 8 6 Attach 15 | . . 3 12 Detach 3 | . 1 1 1 Swap 5 | . 1 2 2 Drop 18 | . 7 7 4 Fire 97 | . 13 17 67 Melee 41 | . 24 17 . Ram 1 | . . . 1 Kick . | . . . . Crush 10 | . . . 10 Escape Stasis . | . . . . Rewire . | . . . . Trap . | . . . . Miscellaneous . | . . . . Route ------- -11/Scrapyard -10/Materials (discovered 4 exits: *Mat x3 / [*Min]) -9/Materials -8/Materials History --------- Turn | Location | Event 1 | -11/Scrapyard | Discovered new exit (range 0) 1 | -11/Scrapyard | Entered Materials 69 | -10/Materials | Discovered new exit (range 15) 239 | -10/Materials | Discovered new exit (range 9) 310 | -10/Materials | Build established: Mutant 532 | -10/Materials | Core integrity fell below 50% 634 | -10/Materials | Discovered new exit (range 16) 811 | -10/Materials | Discovered new exit (range 5) 1005 | -10/Materials | Entered another Materials area 1005 | -9/Materials | Evolved 2 slots: Utility x2 1690 | -9/Materials | Discovered new exit (range 4) 1726 | -9/Materials | Entered another Materials area 1726 | -8/Materials | Evolved 2 slots: Propulsion x1, Utility x1 2153 | -8/Materials | Core integrity fell below 50% 2196 | -8/Materials | Lost 9 parts (3n4u2w) 2264 | -8/Materials | Garrison activated, responded to threat 2298 | -8/Materials | Core integrity fell below 20% 2320 | -8/Materials | Lost 3 parts (2n1w) 2372 | -8/Materials | Destroyed by H-55 Commando with Gauss Rifle Last Messages --------------- 02286_ Slammed into S-10 Pest. 02289_ Critical hit (Burn: +37). 02289_ Broken Hpw. Shotgun destroyed. 02289_ Slammed into S-10 Pest. 02290_ Acquired 7 matter. 02290_ R-06 Scavenger collects Com. Wheel. 02290_ Slammed into S-10 Pest. 02294_ R-06 Scavenger collects Sml. Matter Pod. 02295_ Slammed into S-10 Pest. 02297_ Critical hit (Burn: +37). 02297_ S-10 Pest destroyed. 02310_ Penetrated by Slug. 02322_ Slug penetrates Wall. 02325_ Penetrated by Slug. 02328_ Processing Tank disabled. 02328_ Critical hit (Burn: +37). 02331_ Adv. Treads destroyed. 02336_ Wheel destroyed. 02350_ Slammed into A-02 Transporter. 02366_ Slug penetrates Wall. Map ----- +----------------------------------------------------+ | ?????????????????????# #?==[ #??????????????? | | ?????????????????????# # == ! #??????????????? | | ?????????????????????# # =[ #??????????????? | | ?????????????????????# + #?????????????## | | ?????????????????????# # #?????????????# | | ?????????????????????### # ! +?????????????# | | ???????????????????????# #? #?????????????# | | ?????????????????#######"##########?????????????# | | ?????????????????# #?????????????????# | | ?????????????????# " " """ #?????????????????# | | ?????????????????# T = """"" #?????????????????# | | ?????????????????# " """"" #?????????????????# | | ?????????????????# #?????????????????# | | ?????????????????#######s#########+#####????????# | | ??????????????????????# #??????# | | ??????????????????????# #????????????# | | ??????????????????????# #????????????# | | ??????????????????????# #????????????## | | ??????????????????????# ?????????? | | ??????????????????????# ###########?????????? | | ??????????????????????# #???????????????????? | | ??????????????????????# #???????????????????? | | ??????????????????????# #???????????????????? | | ??????????????????????# #???????????????????? | | ??????????????????????# +???????????????????? | | ??????????????????????# @ #???????????????????? | | ??????????????????????# ##/#???????????????????? | | ??????????????????????# #? "??????????????????? | | ??????????????????????# #??"""?????????????????? | | ?????????????????????? ???"""????????????????? | | ?????????????????????# ????""????????????????? | | ?????????????????????# ????""????????????????# | | ?????????????????????# #?????????????????????# | | ?????????????????????# #?????????????????????# | | ?????????????????????## ##?????????????????????# | | ??????????????????????# #??????????????????????? | | ??????????????????????# ???????????????????????? | | ??????????????????????# ???????????????????????? | | ??????????????????????# ???????????????????????? | | ??????????????????????# ???????????????????????? | | ??????????????????????? ???????????????????????? | | ?????????????????????????????????????????????##### | | ?????????????????????????????????????????????# | | ?????????????????????????????????????????????# | | ?????????????????????????????????????????????# | | ?????????????????????????????????????????????# | | ?????????????????????????????????????????????# | | ?????????????????????????????????????????????# | | ?????????????????????????????????????????????# | | ?????????????????????????????????????????????##### | +----------------------------------------------------+ Best States ------------- Heat Dissipation 31 Energy Generation 14 Energy Capacity 250 Matter Stores 300 Matter Capacity 300 Sight Range 16 Terrain Scan Density 10 Armor Coverage 750 Resistance: KI 20 Weapon Shielding 33 Evasion (%) 55 Target Analysis 5 Recoil Reduction 3 Item Schematics ----------------- Datajack | -9/Materials | Hacked Robot Schematics ------------------ None Fabricated ------------ Nothing Alien Tech Used ----------------- None Achievements -------------- None Challenges ------------ None Game ------ Seed NullLongswordCutter Manual? 0 Play Time 00:27:21 Cumulative 144.1 hours Start 2021.07.08 @ 01:45:57 End 2021.07.08 @ 15:37:05 Sessions 5 Manual Loads 0 Difficulty Rogue Special Mode None Game No. 213 Rogue 213 Adventurer 0 Explorer 0 Win Type - Total 7 Types 5/0/1/1/0/0/0/0/0 Lore% 51 Gallery% 76 Achievement% 61 Wizard Run 0 Options --------- ASCII 0 Keyboard 0 Movement Numpad Keybinds 0 Fullscreen 1 Font 18/Terminus Map View 76x50 Tactical HUD 1 Map Filters NONE Filters NONE Steam 1 RUN: 93f2e5a7-214b-428d-8841-10ef915e2f9c